[Event "Late-Titled-Tuesday-Blitz-October-24-2023"]
[Site "Chess.com"]
[Date "2023.10.24"]
[Round "2"]
[White "MatthewG-p4p"]
[Black "Alphafischer2019"]
[Result "1-0"]
[WhiteElo "2918"]
[BlackElo "2601"]
[TimeControl "180+1"]
[EndTime "14:19:04 PDT"]
[Termination "MatthewG-p4p won by checkmate"]

1. e4 {[%clk 0:03:00.9]} 1... c5 {[%clk 0:02:58.4]} 2. c3 {[%clk 0:02:57]} 2...
Nf6 {[%clk 0:02:58]} 3. e5 {[%clk 0:02:55]} 3... Nd5 {[%clk 0:02:58.1]} 4. Nf3
{[%clk 0:02:54.2]} 4... Nc6 {[%clk 0:02:57.6]} 5. Bc4 {[%clk 0:02:53.9]} 5...
Nb6 {[%clk 0:02:55.7]} 6. Bb3 {[%clk 0:02:53.9]} 6... d5 {[%clk 0:02:55.2]} 7.
exd6 {[%clk 0:02:54.1]} 7... Qxd6 {[%clk 0:02:55.3]} 8. O-O {[%clk 0:02:53.7]}
8... c4 {[%clk 0:02:54.9]} 9. Bc2 {[%clk 0:02:53.5]} 9... Bg4 {[%clk 0:02:48.3]}
10. Re1 {[%clk 0:02:51.7]} 10... e6 {[%clk 0:02:45.2]} 11. b3 {[%clk 0:02:50.5]}
11... Bh5 {[%clk 0:02:38.7]} 12. Na3 {[%clk 0:02:48.4]} 12... cxb3 {[%clk
0:02:38.5]} 13. axb3 {[%clk 0:02:48.4]} 13... Be7 {[%clk 0:02:38.3]} 14. Nc4
{[%clk 0:02:48.4]} 14... Nxc4 {[%clk 0:02:32.8]} 15. bxc4 {[%clk 0:02:49.3]}
15... O-O {[%clk 0:02:27]} 16. d4 {[%clk 0:02:47.6]} 16... Rfd8 {[%clk
0:02:20.4]} 17. c5 {[%clk 0:02:44.4]} 17... Qc7 {[%clk 0:02:18.1]} 18. Qe2
{[%clk 0:02:42.2]} 18... Bf6 {[%clk 0:02:13.6]} 19. h3 {[%clk 0:02:12.6]} 19...
Bxd4 {[%clk 0:01:36.2]} 20. cxd4 {[%clk 0:02:01.8]} 20... Nxd4 {[%clk
0:01:35.8]} 21. Bxh7+ {[%clk 0:01:28.9]} 21... Kh8 {[%clk 0:00:34.5]} 22. Qe4
{[%clk 0:01:25.3]} 22... Nxf3+ {[%clk 0:00:17.9]} 23. gxf3 {[%clk 0:01:22]}
23... g6 {[%clk 0:00:18.3]} 24. Bg5 {[%clk 0:00:49.4]} 24... Kxh7 {[%clk
0:00:11.6]} 25. Bxd8 {[%clk 0:00:46.4]} 25... Rxd8 {[%clk 0:00:11]} 26. Rab1
{[%clk 0:00:47]} 26... Qxc5 {[%clk 0:00:10.8]} 27. Rxb7 {[%clk 0:00:46.1]} 27...
Qg5+ {[%clk 0:00:11.5]} 28. Kh2 {[%clk 0:00:43.8]} 28... Kg8 {[%clk 0:00:11.5]}
29. f4 {[%clk 0:00:38.2]} 29... Qc5 {[%clk 0:00:09.3]} 30. Qe3 {[%clk
0:00:36.5]} 30... Qc2 {[%clk 0:00:06.7]} 31. Rxa7 {[%clk 0:00:35]} 31... Rd2
{[%clk 0:00:07.3]} 32. Ra8+ {[%clk 0:00:35]} 32... Kh7 {[%clk 0:00:07]} 33. Rf1
{[%clk 0:00:34]} 33... Rd5 {[%clk 0:00:06.1]} 34. Ra7 {[%clk 0:00:32.5]} 34...
Kg8 {[%clk 0:00:05.6]} 35. Rc1 {[%clk 0:00:31.3]} 35... Qf5 {[%clk 0:00:06]} 36.
Rc8+ {[%clk 0:00:28.3]} 36... Kh7 {[%clk 0:00:06.6]} 37. Rcc7 {[%clk 0:00:26.3]}
37... Kg7 {[%clk 0:00:07.3]} 38. Qc3+ {[%clk 0:00:25.2]} 38... e5 {[%clk
0:00:06.9]} 39. Rxf7+ {[%clk 0:00:23]} 39... Qxf7 {[%clk 0:00:06.7]} 40. Rxf7+
{[%clk 0:00:23.7]} 40... Kxf7 {[%clk 0:00:07.6]} 41. fxe5 {[%clk 0:00:20.2]}
41... Ke6 {[%clk 0:00:08.2]} 42. f4 {[%clk 0:00:20.7]} 42... Rd7 {[%clk
0:00:08]} 43. Qc6+ {[%clk 0:00:20.7]} 43... Ke7 {[%clk 0:00:08.7]} 44. Qf6+
{[%clk 0:00:21.2]} 44... Ke8 {[%clk 0:00:08.6]} 45. e6 {[%clk 0:00:21.4]} 45...
Re7 {[%clk 0:00:09.1]} 46. Qh8# {[%clk 0:00:21.3]} 1-0

[Event "Late-Titled-Tuesday-Blitz-October-24-2023"]
[Site "Chess.com"]
[Date "2023.10.24"]
[Round "2"]
[White "Lion-Al-Messi"]
[Black "eCztery"]
[Result "1-0"]
[WhiteElo "2671"]
[BlackElo "2383"]
[TimeControl "180+1"]
[EndTime "14:19:05 PDT"]
[Termination "Lion-Al-Messi won by checkmate"]

1. e4 {[%clk 0:03:00.9]} 1... c5 {[%clk 0:02:59.2]} 2. Nf3 {[%clk 0:03:00.7]}
2... g6 {[%clk 0:02:59.8]} 3. d4 {[%clk 0:03:00.8]} 3... cxd4 {[%clk 0:03:00.7]}
4. Qxd4 {[%clk 0:03:01.2]} 4... Nf6 {[%clk 0:03:00.6]} 5. e5 {[%clk 0:03:01.8]}
5... Nc6 {[%clk 0:03:01.1]} 6. Qa4 {[%clk 0:03:01.9]} 6... Nd5 {[%clk
0:03:01.7]} 7. Qe4 {[%clk 0:03:02.3]} 7... Nb6 {[%clk 0:02:56.2]} 8. Nc3 {[%clk
0:03:01.9]} 8... Bg7 {[%clk 0:02:56.7]} 9. Bf4 {[%clk 0:03:01.1]} 9... O-O
{[%clk 0:02:57.2]} 10. O-O-O {[%clk 0:03:00.5]} 10... Re8 {[%clk 0:02:34]} 11.
h4 {[%clk 0:03:00.1]} 11... e6 {[%clk 0:02:25.2]} 12. h5 {[%clk 0:02:58.3]}
12... d5 {[%clk 0:02:25.5]} 13. exd6 {[%clk 0:02:51.1]} 13... Nd5 {[%clk
0:02:25.1]} 14. hxg6 {[%clk 0:02:46.9]} 14... hxg6 {[%clk 0:02:00.6]} 15. Bg5
{[%clk 0:02:46.3]} 15... Nxc3 {[%clk 0:01:40.5]} 16. bxc3 {[%clk 0:02:38.1]}
16... Qa5 {[%clk 0:01:22.7]} 17. d7 {[%clk 0:02:21.5]} 17... Qa3+ {[%clk
0:01:05.9]} 18. Kb1 {[%clk 0:02:19.9]} 18... Bxd7 {[%clk 0:01:05.7]} 19. Rxd7
{[%clk 0:01:42.8]} 19... Qxc3 {[%clk 0:00:52.4]} 20. Kc1 {[%clk 0:01:38.9]}
20... Nb4 {[%clk 0:00:19.7]} 21. Qc4 {[%clk 0:01:08.1]} 21... Qa1+ {[%clk
0:00:12.6]} 22. Kd2 {[%clk 0:01:08.8]} 22... Rac8 {[%clk 0:00:12.7]} 23. Rc7
{[%clk 0:00:58.4]} 23... Rcd8+ {[%clk 0:00:04.7]} 24. Bxd8 {[%clk 0:00:51.3]}
24... Rxd8+ {[%clk 0:00:05.6]} 25. Bd3 {[%clk 0:00:48]} 25... Qxh1 {[%clk
0:00:06.5]} 26. Qxb4 {[%clk 0:00:46.7]} 26... Qxg2 {[%clk 0:00:06.4]} 27. Qe4
{[%clk 0:00:16.8]} 27... Qxf2+ {[%clk 0:00:06.2]} 28. Qe2 {[%clk 0:00:17]} 28...
Qb6 {[%clk 0:00:02.3]} 29. Rc4 {[%clk 0:00:08.5]} 29... Qa5+ {[%clk 0:00:02.8]}
30. Kd1 {[%clk 0:00:04]} 30... Qxa2 {[%clk 0:00:03.7]} 31. Qd2 {[%clk 0:00:04]}
31... Qa1+ {[%clk 0:00:03.7]} 32. Ke2 {[%clk 0:00:04.2]} 32... Qf6 {[%clk
0:00:04.6]} 33. Re4 {[%clk 0:00:04.2]} 33... e5 {[%clk 0:00:04.9]} 34. Qb4
{[%clk 0:00:03.7]} 34... Qc6 {[%clk 0:00:04.2]} 35. Qc4 {[%clk 0:00:03.8]} 35...
Qd7 {[%clk 0:00:03.9]} 36. Re3 {[%clk 0:00:03.6]} 36... Qg4 {[%clk 0:00:03.9]}
37. Qxg4 {[%clk 0:00:03.7]} 37... e4 {[%clk 0:00:04.3]} 38. Qxe4 {[%clk
0:00:03.9]} 38... f5 {[%clk 0:00:04]} 39. Qe6+ {[%clk 0:00:04]} 39... Kh7 {[%clk
0:00:04.3]} 40. Ng5+ {[%clk 0:00:04.9]} 40... Kh6 {[%clk 0:00:04.7]} 41. Nf7+
{[%clk 0:00:05.4]} 41... Kh7 {[%clk 0:00:05.5]} 42. Rh3+ {[%clk 0:00:05.7]}
42... Kg8 {[%clk 0:00:05.7]} 43. Nh6+ {[%clk 0:00:05.6]} 43... Kf8 {[%clk
0:00:06.6]} 44. Qf7# {[%clk 0:00:06]} 1-0

[Event "Late-Titled-Tuesday-Blitz-October-24-2023"]
[Site "Chess.com"]
[Date "2023.10.24"]
[Round "2"]
[White "jaskol95"]
[Black "GMG"]
[Result "0-1"]
[WhiteElo "2542"]
[BlackElo "2768"]
[TimeControl "180+1"]
[EndTime "14:19:07 PDT"]
[Termination "GMG won by resignation"]

1. d4 {[%clk 0:03:00.9]} 1... d5 {[%clk 0:02:59.7]} 2. Nc3 {[%clk 0:03:01.1]}
2... Nf6 {[%clk 0:02:58]} 3. Bf4 {[%clk 0:03:01]} 3... a6 {[%clk 0:02:55.6]} 4.
e3 {[%clk 0:03:00.6]} 4... b5 {[%clk 0:02:55.8]} 5. a3 {[%clk 0:02:59.6]} 5...
e6 {[%clk 0:02:49.7]} 6. b4 {[%clk 0:02:50.3]} 6... Nbd7 {[%clk 0:02:49.5]} 7.
Nf3 {[%clk 0:02:50]} 7... Bd6 {[%clk 0:02:41.4]} 8. Bd3 {[%clk 0:02:40.4]} 8...
Bb7 {[%clk 0:02:40.3]} 9. O-O {[%clk 0:02:38.8]} 9... Ne4 {[%clk 0:02:36.5]} 10.
Ne2 {[%clk 0:02:08.7]} 10... O-O {[%clk 0:02:24.4]} 11. Nc1 {[%clk 0:02:04.7]}
11... Nb6 {[%clk 0:02:20.7]} 12. Nb3 {[%clk 0:01:58.8]} 12... Nc4 {[%clk
0:02:19.6]} 13. Bxe4 {[%clk 0:01:51.8]} 13... dxe4 {[%clk 0:02:19.5]} 14. Nfd2
{[%clk 0:01:52.4]} 14... e5 {[%clk 0:02:07.6]} 15. Nxc4 {[%clk 0:01:35.7]} 15...
exf4 {[%clk 0:02:06.6]} 16. Nxd6 {[%clk 0:01:35.5]} 16... Qxd6 {[%clk
0:02:07.3]} 17. Nc5 {[%clk 0:01:30.2]} 17... Bd5 {[%clk 0:02:06.6]} 18. Qg4
{[%clk 0:01:23.7]} 18... fxe3 {[%clk 0:01:51.4]} 19. fxe3 {[%clk 0:01:23.8]}
19... Rad8 {[%clk 0:00:59.6]} 20. Rf4 {[%clk 0:01:07.2]} 20... Kh8 {[%clk
0:00:59.4]} 21. Raf1 {[%clk 0:01:06]} 21... Qe7 {[%clk 0:00:43.9]} 22. Nxe4
{[%clk 0:00:48.9]} 22... Rde8 {[%clk 0:00:27.7]} 23. Ng3 {[%clk 0:00:27.3]}
23... Qxe3+ {[%clk 0:00:27.3]} 24. Kh1 {[%clk 0:00:27.9]} 24... Qe6 {[%clk
0:00:25.3]} 25. Qh4 {[%clk 0:00:22.9]} 25... Bc4 {[%clk 0:00:23.6]} 26. Rg1
{[%clk 0:00:21.5]} 26... f6 {[%clk 0:00:21.6]} 27. Rf2 {[%clk 0:00:15.1]} 27...
g6 {[%clk 0:00:19.2]} 28. h3 {[%clk 0:00:15]} 28... f5 {[%clk 0:00:19.6]} 29.
Qh6 {[%clk 0:00:15.2]} 29... Qd6 {[%clk 0:00:18.3]} 30. Rf4 {[%clk 0:00:08.8]}
30... Rf7 {[%clk 0:00:16]} 31. Qg5 {[%clk 0:00:07.2]} 31... Rfe7 {[%clk
0:00:15.4]} 32. Kh2 {[%clk 0:00:06.8]} 32... Re3 {[%clk 0:00:15.5]} 33. h4
{[%clk 0:00:06.7]} 33... Bd5 {[%clk 0:00:14.3]} 34. h5 {[%clk 0:00:05]} 34...
Qe7 {[%clk 0:00:14.4]} 35. Qxe7 {[%clk 0:00:04.8]} 35... R8xe7 {[%clk
0:00:15.3]} 36. hxg6 {[%clk 0:00:05.3]} 36... hxg6 {[%clk 0:00:16.1]} 37. Nf1
{[%clk 0:00:04.5]} 37... Re2 {[%clk 0:00:15.7]} 38. Ng3 {[%clk 0:00:03.7]} 38...
Rxc2 {[%clk 0:00:15.6]} 39. Rd1 {[%clk 0:00:03.5]} 39... Kg7 {[%clk 0:00:15.3]}
40. Kh3 {[%clk 0:00:03.4]} 40... Kf6 {[%clk 0:00:15.6]} 41. Rg1 {[%clk
0:00:02.4]} 41... Rh7+ {[%clk 0:00:15.7]} 42. Nh5+ {[%clk 0:00:02.1]} 42...
Rxh5+ {[%clk 0:00:16.3]} 43. Kg3 {[%clk 0:00:02.8]} 43... Rc3+ {[%clk
0:00:16.6]} 44. Kf2 {[%clk 0:00:03.1]} 44... g5 {[%clk 0:00:17.1]} 45. g4 {[%clk
0:00:02.8]} 45... Rh2+ {[%clk 0:00:16.7]} 46. Kf1 {[%clk 0:00:03]} 46... gxf4
{[%clk 0:00:16.7]} 0-1

[Event "Late-Titled-Tuesday-Blitz-October-24-2023"]
[Site "Chess.com"]
[Date "2023.10.24"]
[Round "2"]
[White "zajka-molotok"]
[Black "SchmakAttack"]
[Result "1-0"]
[WhiteElo "2554"]
[BlackElo "2745"]
[TimeControl "180+1"]
[EndTime "14:19:10 PDT"]
[Termination "zajka-molotok won on time"]

1. e4 {[%clk 0:03:00.9]} 1... g6 {[%clk 0:02:59.5]} 2. d4 {[%clk 0:02:59.6]}
2... Bg7 {[%clk 0:02:59.9]} 3. Nc3 {[%clk 0:02:57.5]} 3... d6 {[%clk 0:03:00.2]}
4. Be3 {[%clk 0:02:52.9]} 4... a6 {[%clk 0:02:59.8]} 5. Nf3 {[%clk 0:02:51.6]}
5... b5 {[%clk 0:02:58.9]} 6. Bd3 {[%clk 0:02:51]} 6... Nd7 {[%clk 0:02:58.7]}
7. Qd2 {[%clk 0:02:45.2]} 7... c5 {[%clk 0:02:53.5]} 8. a4 {[%clk 0:02:29.5]}
8... b4 {[%clk 0:02:41.4]} 9. Ne2 {[%clk 0:02:23.1]} 9... Ngf6 {[%clk 0:02:35]}
10. c3 {[%clk 0:02:15.9]} 10... a5 {[%clk 0:02:31]} 11. Ng3 {[%clk 0:01:43.5]}
11... O-O {[%clk 0:02:28.1]} 12. O-O {[%clk 0:01:40.1]} 12... Ba6 {[%clk
0:02:10.4]} 13. Bxa6 {[%clk 0:01:35.6]} 13... Rxa6 {[%clk 0:02:11.3]} 14. Bh6
{[%clk 0:01:29.9]} 14... cxd4 {[%clk 0:01:12.3]} 15. cxd4 {[%clk 0:01:26.2]}
15... e5 {[%clk 0:01:12.4]} 16. Bxg7 {[%clk 0:01:22.2]} 16... Kxg7 {[%clk
0:01:13.3]} 17. Rfd1 {[%clk 0:01:17.5]} 17... Qa8 {[%clk 0:01:06.4]} 18. Qe3
{[%clk 0:01:07.7]} 18... Re8 {[%clk 0:01:01.8]} 19. d5 {[%clk 0:01:04.9]} 19...
h6 {[%clk 0:00:49.9]} 20. Rac1 {[%clk 0:01:01.9]} 20... Nc5 {[%clk 0:00:44.9]}
21. b3 {[%clk 0:00:58.3]} 21... Ra7 {[%clk 0:00:34.5]} 22. Nh4 {[%clk
0:00:54.4]} 22... Kh7 {[%clk 0:00:34.6]} 23. Rc4 {[%clk 0:00:26.2]} 23... Qd8
{[%clk 0:00:28.7]} 24. Nf3 {[%clk 0:00:24.6]} 24... Nfd7 {[%clk 0:00:20]} 25.
Rdc1 {[%clk 0:00:22.2]} 25... Qe7 {[%clk 0:00:18.5]} 26. Nd2 {[%clk 0:00:20.8]}
26... Rc7 {[%clk 0:00:17.6]} 27. R4c2 {[%clk 0:00:19.4]} 27... Rec8 {[%clk
0:00:17.9]} 28. Nc4 {[%clk 0:00:18.7]} 28... Ra7 {[%clk 0:00:07.5]} 29. Nf1
{[%clk 0:00:18.5]} 29... Nf6 {[%clk 0:00:04.2]} 30. Nfd2 {[%clk 0:00:18]} 30...
Nh5 {[%clk 0:00:04.3]} 31. g3 {[%clk 0:00:17.6]} 31... f5 {[%clk 0:00:03]} 32.
exf5 {[%clk 0:00:16.9]} 32... gxf5 {[%clk 0:00:03.9]} 33. Qf3 {[%clk 0:00:17]}
33... Kg6 {[%clk 0:00:03.2]} 34. Kh1 {[%clk 0:00:15.3]} 34... Nf6 {[%clk
0:00:03.4]} 35. Qe2 {[%clk 0:00:14.2]} 35... e4 {[%clk 0:00:02.3]} 36. Ne3
{[%clk 0:00:14.1]} 36... Rac7 {[%clk 0:00:01.7]} 37. Ndc4 {[%clk 0:00:14]} 37...
Na6 {[%clk 0:00:01.6]} 38. g4 {[%clk 0:00:13.8]} 38... fxg4 {[%clk 0:00:01.5]}
39. Nxg4 {[%clk 0:00:13.7]} 39... Nc5 {[%clk 0:00:02]} 40. Nxf6 {[%clk
0:00:13.6]} 40... Qxf6 {[%clk 0:00:02.9]} 41. Rg1+ {[%clk 0:00:12.9]} 41... Kh7
{[%clk 0:00:02.9]} 42. Qg4 {[%clk 0:00:12.6]} 42... Rf8 {[%clk 0:00:02.5]} 43.
Re2 {[%clk 0:00:10]} 43... Re7 {[%clk 0:00:02.2]} 44. Re3 {[%clk 0:00:09.3]}
44... Ref7 {[%clk 0:00:01]} 45. Reg3 {[%clk 0:00:09.1]} 1-0

[Event "Late-Titled-Tuesday-Blitz-October-24-2023"]
[Site "Chess.com"]
[Date "2023.10.24"]
[Round "2"]
[White "louis198"]
[Black "SlippperyWhenWet"]
[Result "1-0"]
[WhiteElo "2657"]
[BlackElo "2349"]
[TimeControl "180+1"]
[EndTime "14:19:12 PDT"]
[Termination "louis198 won by checkmate"]

1. d4 {[%clk 0:03:00.4]} 1... Nf6 {[%clk 0:02:56.8]} 2. Bf4 {[%clk 0:03:00.3]}
2... d6 {[%clk 0:02:53.6]} 3. e3 {[%clk 0:03:00.6]} 3... Nbd7 {[%clk 0:02:53.9]}
4. h3 {[%clk 0:03:00.3]} 4... e5 {[%clk 0:02:54]} 5. Bh2 {[%clk 0:03:00]} 5...
Be7 {[%clk 0:02:50.4]} 6. Nf3 {[%clk 0:02:59.4]} 6... e4 {[%clk 0:02:49.5]} 7.
Nfd2 {[%clk 0:02:59.1]} 7... d5 {[%clk 0:02:49.7]} 8. c4 {[%clk 0:02:57.6]} 8...
c6 {[%clk 0:02:50]} 9. Nc3 {[%clk 0:02:57.4]} 9... O-O {[%clk 0:02:47.7]} 10.
Be2 {[%clk 0:02:57.6]} 10... Nb6 {[%clk 0:02:45.3]} 11. O-O {[%clk 0:02:56.2]}
11... Be6 {[%clk 0:02:39.8]} 12. cxd5 {[%clk 0:02:52.7]} 12... cxd5 {[%clk
0:02:36.6]} 13. Nb5 {[%clk 0:02:51.7]} 13... a6 {[%clk 0:02:29.2]} 14. Nc7
{[%clk 0:02:43.5]} 14... Rc8 {[%clk 0:02:28.2]} 15. Nxe6 {[%clk 0:02:40.9]}
15... fxe6 {[%clk 0:02:29.1]} 16. Rc1 {[%clk 0:02:40.5]} 16... Qd7 {[%clk
0:02:27.4]} 17. Qb3 {[%clk 0:02:39.2]} 17... Rc6 {[%clk 0:02:17.3]} 18. Rxc6
{[%clk 0:02:23.9]} 18... Qxc6 {[%clk 0:02:17.7]} 19. f3 {[%clk 0:02:17.4]} 19...
exf3 {[%clk 0:02:13.6]} 20. Nxf3 {[%clk 0:02:15.3]} 20... Nbd7 {[%clk
0:02:04.8]} 21. Bd3 {[%clk 0:01:56.9]} 21... Ne4 {[%clk 0:01:47.6]} 22. Bxe4
{[%clk 0:01:54.4]} 22... dxe4 {[%clk 0:01:47.5]} 23. Nd2 {[%clk 0:01:54.7]}
23... Rxf1+ {[%clk 0:01:47.1]} 24. Nxf1 {[%clk 0:01:54.9]} 24... Nb6 {[%clk
0:01:45]} 25. Ng3 {[%clk 0:01:48.9]} 25... Qc1+ {[%clk 0:01:41.1]} 26. Nf1
{[%clk 0:01:42]} 26... Qc6 {[%clk 0:01:40.4]} 27. Bg3 {[%clk 0:01:35.8]} 27...
Nd5 {[%clk 0:01:39.1]} 28. Bf2 {[%clk 0:01:29.1]} 28... Bd6 {[%clk 0:01:36]} 29.
a3 {[%clk 0:01:25.8]} 29... b5 {[%clk 0:01:35]} 30. Qd1 {[%clk 0:01:25.9]} 30...
e5 {[%clk 0:01:20.9]} 31. Qg4 {[%clk 0:01:24.2]} 31... exd4 {[%clk 0:01:06.1]}
32. Qxe4 {[%clk 0:01:09.7]} 32... dxe3 {[%clk 0:00:57.2]} 33. Nxe3 {[%clk
0:01:07.6]} 33... Ne7 {[%clk 0:00:26.1]} 34. Qe6+ {[%clk 0:01:06.7]} 34... Kf8
{[%clk 0:00:24.9]} 35. Kh1 {[%clk 0:01:00.2]} 35... Qc1+ {[%clk 0:00:22.1]} 36.
Bg1 {[%clk 0:01:00.1]} 36... Qc5 {[%clk 0:00:19]} 37. Ng4 {[%clk 0:00:55.5]}
37... Qd5 {[%clk 0:00:17.4]} 38. Qd7 {[%clk 0:00:52.2]} 38... Qc6 {[%clk
0:00:13.6]} 39. Qd8+ {[%clk 0:00:45.2]} 39... Kf7 {[%clk 0:00:14.2]} 40. b4
{[%clk 0:00:31.2]} 40... h5 {[%clk 0:00:14]} 41. Nf2 {[%clk 0:00:29.7]} 41...
Qc7 {[%clk 0:00:08.9]} 42. Qh8 {[%clk 0:00:29.3]} 42... g6 {[%clk 0:00:06.3]}
43. Ne4 {[%clk 0:00:29.6]} 43... Be5 {[%clk 0:00:04.8]} 44. Qh7+ {[%clk
0:00:29.7]} 44... Ke6 {[%clk 0:00:03.7]} 45. Nc5+ {[%clk 0:00:29.2]} 45... Kf5
{[%clk 0:00:02.9]} 46. Qf7+ {[%clk 0:00:29.2]} 46... Bf6 {[%clk 0:00:02.8]} 47.
Qe6+ {[%clk 0:00:29.6]} 47... Kg5 {[%clk 0:00:02.8]} 48. Be3+ {[%clk 0:00:29.9]}
48... Kh4 {[%clk 0:00:02.4]} 49. Qxf6+ {[%clk 0:00:30.2]} 49... g5 {[%clk
0:00:02.4]} 50. Qxg5# {[%clk 0:00:26.4]} 1-0

[Event "Late-Titled-Tuesday-Blitz-October-24-2023"]
[Site "Chess.com"]
[Date "2023.10.24"]
[Round "2"]
[White "Karttunen"]
[Black "GAO"]
[Result "1-0"]
[WhiteElo "2584"]
[BlackElo "2336"]
[TimeControl "180+1"]
[EndTime "14:19:13 PDT"]
[Termination "Karttunen won by checkmate"]

1. e4 {[%clk 0:03:00.1]} 1... c5 {[%clk 0:03:00.1]} 2. Nf3 {[%clk 0:02:59]} 2...
Nc6 {[%clk 0:03:01]} 3. d4 {[%clk 0:02:56.6]} 3... cxd4 {[%clk 0:03:01.9]} 4.
Nxd4 {[%clk 0:02:56.7]} 4... g6 {[%clk 0:03:02.5]} 5. c4 {[%clk 0:02:55.9]} 5...
Bg7 {[%clk 0:03:02.9]} 6. Be3 {[%clk 0:02:56]} 6... Qb6 {[%clk 0:03:02.5]} 7.
Nb5 {[%clk 0:02:55.2]} 7... Qd8 {[%clk 0:02:59.6]} 8. N1c3 {[%clk 0:02:54]} 8...
Nf6 {[%clk 0:02:53.9]} 9. Be2 {[%clk 0:02:52.5]} 9... O-O {[%clk 0:02:49.8]} 10.
O-O {[%clk 0:02:51.7]} 10... d6 {[%clk 0:02:47.9]} 11. h3 {[%clk 0:02:47.8]}
11... Be6 {[%clk 0:02:45.5]} 12. Rc1 {[%clk 0:02:44.4]} 12... a6 {[%clk
0:02:38.8]} 13. Nd4 {[%clk 0:02:44]} 13... Nxd4 {[%clk 0:02:37.5]} 14. Bxd4
{[%clk 0:02:43.3]} 14... Qa5 {[%clk 0:02:38]} 15. b3 {[%clk 0:02:32.7]} 15... b5
{[%clk 0:02:31.7]} 16. cxb5 {[%clk 0:02:27]} 16... axb5 {[%clk 0:02:32.6]} 17.
Bxb5 {[%clk 0:02:17.5]} 17... Nxe4 {[%clk 0:02:31.8]} 18. Bxg7 {[%clk
0:02:17.2]} 18... Kxg7 {[%clk 0:02:32.7]} 19. Qd4+ {[%clk 0:02:11.7]} 19... Nf6
{[%clk 0:02:32.9]} 20. Bc6 {[%clk 0:01:41.7]} 20... Rac8 {[%clk 0:02:28.2]} 21.
b4 {[%clk 0:01:40.9]} 21... Qd8 {[%clk 0:02:03.5]} 22. b5 {[%clk 0:01:39.1]}
22... Bd7 {[%clk 0:02:03.9]} 23. Nd5 {[%clk 0:01:36.6]} 23... e5 {[%clk
0:02:02]} 24. Qc4 {[%clk 0:01:26.2]} 24... Be6 {[%clk 0:01:55.6]} 25. Rfd1
{[%clk 0:01:12.3]} 25... Bxd5 {[%clk 0:01:48.5]} 26. Rxd5 {[%clk 0:01:11.6]}
26... Nxd5 {[%clk 0:01:46.4]} 27. Qxd5 {[%clk 0:01:12.5]} 27... Qe7 {[%clk
0:01:41.9]} 28. b6 {[%clk 0:01:09.9]} 28... Rfd8 {[%clk 0:01:38.1]} 29. a4
{[%clk 0:01:01.3]} 29... Qg5 {[%clk 0:01:25.6]} 30. Rd1 {[%clk 0:00:56.3]} 30...
Qh5 {[%clk 0:01:19.6]} 31. Ra1 {[%clk 0:00:42.7]} 31... Qe2 {[%clk 0:01:11.9]}
32. b7 {[%clk 0:00:41.8]} 32... Rb8 {[%clk 0:01:09.3]} 33. a5 {[%clk 0:00:40.3]}
33... Qb2 {[%clk 0:01:07.9]} 34. Rd1 {[%clk 0:00:35.9]} 34... Qa3 {[%clk
0:01:02.1]} 35. a6 {[%clk 0:00:35.4]} 35... Qxa6 {[%clk 0:01:02]} 36. h4 {[%clk
0:00:34.4]} 36... h6 {[%clk 0:00:59.9]} 37. Rd3 {[%clk 0:00:33.6]} 37... Qa1+
{[%clk 0:00:59.1]} 38. Kh2 {[%clk 0:00:33.5]} 38... Qc1 {[%clk 0:00:59.4]} 39.
Rf3 {[%clk 0:00:32]} 39... Rf8 {[%clk 0:00:57.9]} 40. Qxd6 {[%clk 0:00:30.4]}
40... Qb2 {[%clk 0:00:54.9]} 41. Qf6+ {[%clk 0:00:28.3]} 41... Kh7 {[%clk
0:00:51.6]} 42. h5 {[%clk 0:00:25.2]} 42... Qd4 {[%clk 0:00:44.9]} 43. g3 {[%clk
0:00:24.5]} 43... e4 {[%clk 0:00:41.2]} 44. Qxd4 {[%clk 0:00:24]} 44... exf3
{[%clk 0:00:40.9]} 45. Bxf3 {[%clk 0:00:23.9]} 45... gxh5 {[%clk 0:00:37.2]} 46.
Qf6 {[%clk 0:00:24]} 46... Rbe8 {[%clk 0:00:34.8]} 47. Bxh5 {[%clk 0:00:21.1]}
47... Re6 {[%clk 0:00:28.5]} 48. Qf5+ {[%clk 0:00:21.2]} 48... Kg7 {[%clk
0:00:28]} 49. Bf3 {[%clk 0:00:21]} 49... Rf6 {[%clk 0:00:27.7]} 50. Qg4+ {[%clk
0:00:21.1]} 50... Kh7 {[%clk 0:00:27.1]} 51. Kg2 {[%clk 0:00:21.4]} 51... Rg8
{[%clk 0:00:26.8]} 52. Qe4+ {[%clk 0:00:21.2]} 52... Kg7 {[%clk 0:00:26.3]} 53.
Qe5 {[%clk 0:00:21.6]} 53... Rd8 {[%clk 0:00:22.2]} 54. b8=Q {[%clk 0:00:21.2]}
54... Rxb8 {[%clk 0:00:22.5]} 55. Qxb8 {[%clk 0:00:21.8]} 55... Re6 {[%clk
0:00:22.6]} 56. Qf4 {[%clk 0:00:22.2]} 56... Rf6 {[%clk 0:00:23.5]} 57. Qe5
{[%clk 0:00:22.5]} 57... h5 {[%clk 0:00:22.2]} 58. Bxh5 {[%clk 0:00:22.3]} 58...
Kh7 {[%clk 0:00:18.3]} 59. Qxf6 {[%clk 0:00:21.5]} 59... Kg8 {[%clk 0:00:18.5]}
60. Bxf7+ {[%clk 0:00:21.1]} 60... Kh7 {[%clk 0:00:18.1]} 61. Qg6+ {[%clk
0:00:21]} 61... Kh8 {[%clk 0:00:19]} 62. Qg8# {[%clk 0:00:21.7]} 1-0